bitfinex/quotes_SOLUSD_20230104
["timestamp","ask_amount","ask_price","bid_price","bid_amount"]
[1672824947570,30.0,13.698,13.697,0.00504]
[1672824947758,104.8,13.698,13.688,5.33413467]
[1672824947969,30.0,13.696,13.688,5.33413467]
[1672824948178,30.0,13.694,13.688,5.33413467]
[1672824948518,30.0,13.692,13.688,5.33413467]
[1672824948724,54.83,13.691,13.688,5.33413467]
[1672824948918,30.0,13.69,13.688,5.33413467]
[1672824951452,54.84,13.689,13.688,5.33413467]
[1672824951771,30.0,13.69,13.688,5.33413467]
[1672824952505,30.0,13.69,13.685,53.2729933]
[1672824952722,30.0,13.69,13.685,50.7729933]
[1672824952919,30.0,13.692,13.685,50.7729933]
[1672824953245,54.81,13.695,13.685,50.7729933]
[1672824953560,54.8,13.699,13.686,20.0]
[1672824953771,54.79,13.701,13.686,43.88]
[1672824954485,54.8,13.699,13.686,43.88]
[1672824954695,54.79,13.701,13.686,43.88]
[1672824954912,54.79,13.701,13.687,30.0]
[1672824955124,84.78,13.704,13.688,23.67]
[1672824955449,84.78,13.704,13.685,50.7729933]
[1672824955669,84.78,13.704,13.686,20.0]
[1672824955980,84.78,13.704,13.686,43.67]
[1672824959434,84.78,13.704,13.686,20.0]
[1672824961340,84.78,13.704,13.687,37.87]
[1672824961529,84.78,13.704,13.686,61.45]
[1672824962807,84.78,13.704,13.687,30.0]
[1672824963019,30.0,13.704,13.689,30.0]
[1672824963243,30.0,13.704,13.688,42.05]
[1672824963455,30.0,13.702,13.688,42.05]
[1672824964090,54.78,13.703,13.687,43.35]
[1672824964280,54.78,13.704,13.688,30.0]
[1672824964616,429.6749,13.706,13.69,30.0]
[1672824964802,406.2001,13.706,13.691,44.94]
[1672824965226,376.2001,13.706,13.691,44.94]
[1672824965453,54.77,13.705,13.691,44.94]
[1672824965650,30.0,13.704,13.691,44.94]
[1672824966191,54.77,13.705,13.692,30.0]
[1672824966403,264.6,13.706,13.694,30.0]
[1672824966711,264.6,13.706,13.695,126.93847056]
[1672824967333,264.6,13.706,13.695,74.32]
[1672824967655,30.0,13.705,13.695,74.32]
[1672824968502,30.0,13.705,13.695,20.0]
[1672824968698,30.0,13.705,13.694,20.0]
[1672824968906,30.0,13.705,13.695,54.81]
[1672824969129,30.0,13.705,13.696,20.0]
[1672824969534,30.0,13.709,13.693,50.0]
[1672824969750,30.0,13.709,13.69,77.7242]
[1672824969751,15.98634775,13.706,13.69,47.7242]
[1672824969967,54.77,13.705,13.69,47.7242]
[1672824970165,30.0,13.704,13.69,47.7242]
[1672824970492,54.78,13.703,13.691,30.0]
[1672824970702,30.0,13.706,13.69,47.7242]
[1672824971026,30.0,13.706,13.691,30.0]
[1672824971027,54.77,13.705,13.691,30.0]
[1672824971233,54.77,13.705,13.69,102.5542]
[1672824971637,30.0,13.704,13.69,102.5542]
[1672824972494,30.0,13.702,13.69,102.5542]
[1672824972698,30.0,13.702,13.69,47.7242]
[1672824974480,30.0,13.7,13.69,47.7242]
[1672824974705,30.0,13.7,13.69,22.8319]
[1672824974706,30.0,13.698,13.69,22.8319]
[1672824975014,30.0,13.698,13.685,50.7729933]
[1672824975228,30.0,13.698,13.686,20.0]
[1672824975848,54.8,13.699,13.686,20.0]
[1672824976050,113.2862,13.703,13.687,51.2]
[1672824976691,168.0662,13.703,13.687,51.2]
[1672824979869,168.0662,13.703,13.686,98.5778]
[1672824980899,168.0662,13.703,13.686,43.7278]
[1672824981530,184.05254775,13.703,13.686,43.7278]
[1672824982491,168.0662,13.703,13.686,43.7278]
[1672824982923,168.0662,13.703,13.686,98.5778]
[1672824987739,168.0662,13.703,13.687,82.61847056]
[1672824988094,168.0662,13.703,13.689,30.0]
[1672824988265,113.2862,13.703,13.691,30.0]
[1672824988681,113.2862,13.703,13.691,82.61847056]
[1672824989644,113.2862,13.703,13.691,126.05714853]
[1672824990278,113.2862,13.703,13.691,82.61847056]
[1672824993102,113.2862,13.703,13.691,126.05714853]
[1672824994152,113.2862,13.703,13.691,82.61847056]
[1672824996271,113.2862,13.703,13.691,30.0]
[1672824997425,30.0,13.702,13.689,54.84]
[1672824997621,30.0,13.702,13.688,107.9021]
[1672824999535,113.2862,13.703,13.688,107.9021]
[1672824999724,30.0,13.702,13.688,107.9021]
[1672825000249,113.2862,13.703,13.688,107.9021]
[1672825000899,30.0,13.702,13.688,107.9021]
[1672825001218,113.2862,13.703,13.688,107.9021]
[1672825001527,30.0,13.702,13.688,77.9021]
[1672825002685,84.79,13.702,13.688,77.9021]
[1672825002891,30.0,13.702,13.688,77.9021]
[1672825004571,30.0,13.7,13.688,23.0621]
[1672825004783,54.8,13.699,13.688,23.0621]
[1672825004984,30.0,13.698,13.688,23.0621]
[1672825008676,54.79,13.701,13.688,23.0621]
[1672825008886,30.0,13.7,13.688,23.0621]
[1672825010054,30.0,13.698,13.688,23.0621]
[1672825010459,30.0,13.698,13.684,54.86]
[1672825010666,30.0,13.702,13.682,54.87]
[1672825010667,54.81,13.697,13.682,54.87]
[1672825010877,30.0,13.697,13.68,157.9623]
[1672825011099,30.0,13.695,13.68,157.9623]
[1672825011305,54.82,13.694,13.68,157.9623]
[1672825011527,30.0,13.693,13.68,157.9623]
[1672825012578,54.83,13.692,13.68,157.9623]
[1672825013082,30.0,13.691,13.68,157.9623]
[1672825013946,54.83,13.69,13.681,73.1639731]
[1672825014136,30.0,13.689,13.681,73.1639731]
[1672825017097,30.0,13.687,13.681,73.1639731]
[1672825017285,54.85,13.686,13.681,73.1639731]
[1672825020130,30.0,13.687,13.681,73.1639731]
[1672825020767,30.0,13.689,13.681,73.1639731]
[1672825025185,30.0,13.687,13.681,73.1639731]
[1672825026968,54.82,13.694,13.681,120.09906907]
[1672825027288,30.0,13.693,13.682,25.55]
[1672825027478,30.0,13.693,13.681,120.09906907]
[1672825027815,30.0,13.691,13.681,73.1639731]
[1672825028016,74.83,13.69,13.681,73.1639731]
[1672825028213,30.0,13.689,13.681,73.1639731]
[1672825028428,30.0,13.687,13.681,73.1639731]
[1672825028968,30.0,13.689,13.681,73.1639731]
[1672825030228,74.84,13.688,13.681,73.1639731]
[1672825030625,30.0,13.687,13.681,73.1639731]
[1672825030958,54.85,13.686,13.681,73.1639731]
[1672825031157,54.85,13.687,13.681,73.1639731]
[1672825033067,15.98634775,13.692,13.681,73.1639731]
[1672825033268,54.83,13.691,13.681,73.1639731]
[1672825033466,20.0,13.69,13.681,73.1639731]
[1672825033690,54.84,13.689,13.681,73.1639731]
[1672825033892,20.0,13.688,13.681,73.1639731]
[1672825034095,54.85,13.687,13.681,73.1639731]
[1672825036219,35.98634775,13.688,13.681,73.1639731]
[1672825036622,54.85,13.687,13.681,73.1639731]
[1672825036828,70.83634775,13.687,13.681,73.1639731]
[1672825037255,15.98634775,13.686,13.681,73.1639731]
[1672825038530,184.17261338,13.686,13.681,73.1639731]
[1672825038749,74.85,13.685,13.681,73.1639731]
[1672825039055,93.33626563,13.684,13.681,73.1639731]
[1672825039241,74.86,13.683,13.681,73.1639731]
[1672825039452,184.18261338,13.683,13.681,73.1639731]
[1672825039683,110.96928005,13.682,13.681,73.1639731]
[1672825039902,185.83928005,13.682,13.681,73.1639731]
[1672825040504,185.83928005,13.682,13.681,7.31e-05]
[1672825040823,46.12156247,13.682,13.681,7.31e-05]
[1672825041243,46.12156247,13.682,13.674,29.261875]
[1672825041455,54.87,13.681,13.642,149.40441703]
[1672825041772,98.3629323,13.68,13.648,187.4182]
[1672825041982,54.88,13.679,13.66,25.6]
[1672825042189,169.22928005,13.679,13.665,237.1493549]
[1672825042409,65.48791022,13.678,13.665,237.1493549]
[1672825042612,54.89,13.677,13.666,113.0949]
[1672825042817,120.37791022,13.677,13.666,113.0949]
[1672825043152,54.86,13.683,13.666,113.0949]
[1672825043462,24.8278,13.684,13.667,21.51243447]
[1672825043659,24.8278,13.684,13.668,25.58]
[1672825043868,24.8278,13.684,13.668,72.5891]
[1672825044076,24.8278,13.684,13.668,94.10153447]
[1672825044311,24.8278,13.684,13.668,72.5891]
[1672825045047,24.8278,13.684,13.668,25.58]
[1672825045232,54.86,13.683,13.666,138.5449]
[1672825045442,20.0,13.682,13.666,113.0949]
[1672825045672,54.87,13.681,13.666,113.0949]
[1672825045883,20.0,13.68,13.666,138.5449]
[1672825046092,54.88,13.679,13.666,138.5449]
[1672825046306,20.0,13.678,13.666,113.0949]
[1672825046920,20.0,13.679,13.666,113.0949]
[1672825047235,54.88,13.678,13.666,113.0949]
[1672825047458,20.0,13.679,13.666,113.0949]
[1672825047672,20.0,13.68,13.666,138.8249]
[1672825048190,264.6,13.681,13.667,20.0]
[1672825048419,264.6,13.681,13.668,25.73]
[1672825049889,264.6,13.681,13.666,136.2824]
[1672825049890,54.87,13.68,13.666,136.2824]
[1672825050311,54.87,13.68,13.665,237.1493549]
[1672825050718,20.0,13.679,13.665,237.1493549]
[1672825050924,54.88,13.678,13.665,237.1493549]
[1672825058278,22.7166,13.685,13.665,237.1493549]
[1672825058616,22.7166,13.685,13.666,45.8]
[1672825059019,54.85,13.686,13.667,166.2972]
[1672825059232,54.85,13.686,13.668,25.48]
[1672825060711,54.85,13.686,13.667,166.2972]
[1672825060712,86.85291022,13.685,13.667,166.2972]
[1672825060921,54.86,13.684,13.667,166.2972]
[1672825061146,20.0,13.683,13.667,166.2972]
[1672825061364,54.87,13.682,13.667,166.2972]
[1672825061554,20.0,13.681,13.667,166.2972]
[1672825061770,54.87,13.68,13.667,166.2972]
[1672825061992,20.0,13.679,13.667,166.2972]
[1672825062205,54.88,13.678,13.667,166.2972]
[1672825063982,54.88,13.678,13.665,237.1493549]
[1672825065035,70.86634775,13.678,13.665,237.1493549]
[1672825066819,54.88,13.678,13.665,237.1493549]
[1672825067766,264.6,13.683,13.665,237.1493549]
[1672825067990,264.6,13.683,13.666,25.94]
[1672825068173,264.6,13.683,13.667,20.0]
[1672825068383,264.6,13.683,13.668,140.3676]
[1672825069015,54.85,13.685,13.668,140.3676]
[1672825069232,159.3428,13.691,13.669,21.51243447]
[1672825069437,159.3428,13.691,13.67,25.93]
[1672825069635,159.3428,13.691,13.67,49.653]
[1672825069850,159.3428,13.691,13.67,71.16543447]
[1672825070054,54.83,13.69,13.67,49.653]
[1672825070291,54.85,13.686,13.67,49.653]
[1672825071224,54.85,13.686,13.67,23.723]
[1672825071643,54.85,13.686,13.67,254.4456978]
[1672825072697,848.48634775,13.685,13.67,254.4456978]
[1672825072910,54.86,13.684,13.67,254.4456978]
[1672825073113,20.0,13.683,13.67,254.4456978]
[1672825073334,54.87,13.682,13.67,254.4456978]
[1672825073545,20.0,13.681,13.67,254.4456978]
[1672825073740,54.87,13.68,13.67,254.4456978]
[1672825073949,20.0,13.679,13.67,230.7226978]
[1672825074169,54.88,13.678,13.67,230.7226978]
[1672825074381,70.86634775,13.678,13.67,230.7226978]
[1672825074707,15.98634775,13.677,13.67,230.7226978]
[1672825074903,54.89,13.676,13.67,230.7226978]
[1672825075523,54.88,13.678,13.67,230.7226978]
[1672825075962,15.98634775,13.677,13.67,230.7226978]
[1672825076157,54.89,13.676,13.67,230.7226978]
[1672825076580,70.87634775,13.676,13.67,230.7226978]
[1672825078391,20.0,13.675,13.67,26.72810501]
[1672825078574,56.99892156,13.669,13.649,112.7521]
[1672825078784,54.92,13.668,13.649,207.3632]
[1672825078995,15.98634775,13.668,13.649,207.3632]
[1672825079200,54.93,13.667,13.649,207.3632]
[1672825079415,15.98634775,13.667,13.651,29.309801]
[1672825079743,49.49464989,13.67,13.651,29.309801]
[1672825079744,70.91634775,13.666,13.651,29.309801]
[1672825079937,54.93,13.666,13.651,29.309801]
[1672825080149,15.98634775,13.668,13.651,29.309801]
[1672825080360,54.93,13.667,13.651,29.309801]
[1672825081002,20.0,13.675,13.651,29.309801]
[1672825081324,15.98634775,13.672,13.652,26.23]
[1672825081526,54.91,13.671,13.653,24.6934]
[1672825081851,20.0,13.671,13.654,24.1685]
[1672825082265,20.0,13.673,13.655,49.8874]
[1672825082468,54.88,13.678,13.655,49.8874]
[1672825082676,70.86634775,13.678,13.66,158.7187]
[1672825082880,15.98634775,13.677,13.66,158.7187]
[1672825083101,54.89,13.676,13.661,23.6674]
[1672825083637,70.87634775,13.676,13.661,23.6674]
[1672825084353,54.89,13.676,13.661,23.6674]
[1672825084563,15.98634775,13.677,13.661,23.6674]
[1672825084778,54.88,13.679,13.661,23.6674]
[1672825085007,54.88,13.679,13.662,25.84]
[1672825086040,20.0,13.678,13.662,25.84]
[1672825086574,54.89,13.677,13.661,23.6674]
[1672825091624,54.89,13.677,13.661,49.5374]
[1672825092034,54.89,13.677,13.661,23.6674]
[1672825093197,76.14,13.67,13.661,23.6674]
[1672825093390,74.92,13.669,13.661,23.6674]
[1672825093608,90.90634775,13.669,13.661,23.6674]
[1672825093920,15.98634775,13.668,13.661,23.6674]
[1672825094136,54.93,13.667,13.661,23.6674]
[1672825094355,54.92,13.668,13.661,23.6674]
[1672825094668,46.7211,13.679,13.662,21.51243447]
[1672825094881,99.8701,13.68,13.661,23.6674]
[1672825095092,35.98634775,13.679,13.661,23.6674]
[1672825095308,54.88,13.678,13.661,23.6674]
[1672825095712,54.72312,13.678,13.661,23.6674]
[1672825096446,70.70946775,13.678,13.661,23.6674]
[1672825098351,51.11781103,13.677,13.661,23.6674]
[1672825098672,15.23,13.67,13.661,23.6674]
[1672825098856,54.92,13.669,13.661,23.6674]
[1672825099612,20.0,13.668,13.661,23.6674]
[1672825099815,54.93,13.667,13.661,23.6674]
[1672825104760,828.48634775,13.666,13.66,109.8568]
[1672825104968,867.43,13.666,13.66,109.8568]
[1672825105169,887.43,13.666,13.659,36.2251877]
[1672825109292,903.41634775,13.666,13.659,36.2251877]
[1672825110316,867.43,13.666,13.659,36.2251877]
[1672825111698,918.54781103,13.666,13.659,36.2251877]
[1672825112226,916.04781103,13.666,13.659,36.2251877]
[1672825112418,106.04781103,13.666,13.659,36.2251877]
[1672825112636,54.93,13.666,13.659,36.2251877]
[1672825112948,15.98634775,13.667,13.659,36.2251877]
[1672825113370,54.93,13.666,13.659,36.2251877]
[1672825114203,106.04781103,13.666,13.659,36.2251877]
[1672825114401,51.11781103,13.666,13.659,36.2251877]
[1672825114827,54.92,13.669,13.659,36.2251877]
[1672825115050,71.11781103,13.668,13.659,36.2251877]
[1672825115461,87.10415878,13.668,13.659,36.2251877]
[1672825115671,87.10415878,13.668,13.66,116.8304]
[1672825115882,54.93,13.667,13.66,116.8304]
[1672825116103,30.0,13.666,13.659,36.2251877]
[1672825116318,1024.83347533,13.666,13.659,36.2251877]
[1672825116747,1024.83347533,13.666,13.665,0.0066571]
[1672825117882,1024.83347533,13.666,13.635,26.3]
[1672825117883,25.06,13.659,13.635,26.3]
[1672825118096,25.06,13.659,13.635,116.8304]
[1672825118097,30.0,13.657,13.635,116.8304]
[1672825118311,54.97,13.656,13.636,72.2853]
[1672825118528,30.0,13.655,13.637,30.0]
[1672825118727,30.0,13.653,13.637,30.0]
[1672825119162,20.0,13.652,13.636,98.5853]
[1672825119373,30.0,13.651,13.636,72.2853]
[1672825119572,30.0,13.649,13.636,102.2853]
[1672825119783,20.0,13.648,13.636,72.2853]
[1672825120113,20.0,13.648,13.636,102.2853]
[1672825120298,54.97,13.656,13.637,30.0]
[1672825120514,812.56,13.659,13.637,56.69]
[1672825120738,50.0,13.658,13.638,30.0]
[1672825120934,30.0,13.658,13.64,30.0]
[1672825121149,30.0,13.658,13.641,26.69]
[1672825121362,30.0,13.658,13.642,30.0]
[1672825121779,812.56,13.659,13.642,30.0]
[1672825121992,30.0,13.658,13.644,30.0]
[1672825122207,812.56,13.659,13.645,26.42]
[1672825122827,812.56,13.659,13.643,110.1759]
[1672825123031,30.0,13.658,13.644,26.43]
[1672825123456,30.0,13.658,13.644,30.0]
[1672825124088,30.0,13.658,13.643,136.6059]
[1672825124518,30.0,13.658,13.643,110.1759]
[1672825125141,30.0,13.656,13.643,110.1759]
[1672825125463,15.98634775,13.655,13.643,110.1759]
[1672825125782,30.0,13.653,13.643,110.1759]
[1672825125989,30.0,13.651,13.643,110.1759]
[1672825126207,20.0,13.65,13.643,110.1759]
[1672825127041,30.0,13.654,13.643,110.1759]
[1672825127467,30.0,13.654,13.647,163.0301669]
[1672825129585,30.0,13.656,13.647,163.0301669]
[1672825130528,85.02,13.659,13.647,163.0301669]
[1672825130529,0.06,13.659,13.647,163.0301669]
[1672825130741,30.0,13.658,13.647,163.0301669]
[1672825131172,0.06,13.659,13.647,163.0301669]
[1672825131354,0.06,13.659,13.648,26.44]
[1672825134733,0.06,13.659,13.649,30.0]
[1672825134943,0.06,13.659,13.65,26.32]
[1672825135367,0.06,13.659,13.651,111.1244]
[1672825136099,0.06,13.659,13.652,30.0]
[1672825136413,0.06,13.659,13.654,30.0]
[1672825136621,0.06,13.664,13.654,30.0]
[1672825136622,0.06,13.664,13.656,30.0]
[1672825136833,0.06,13.664,13.657,26.31]
[1672825137241,0.06,13.664,13.655,26.11]
[1672825137451,0.06,13.664,13.656,20.0]
[1672825137676,0.06,13.664,13.657,26.1]
[1672825137887,0.06,13.664,13.655,30.0]
[1672825138202,0.06,13.664,13.656,46.11]
[1672825138438,0.06,13.664,13.657,30.0]
[1672825138652,0.06,13.664,13.658,26.1]
[1672825139492,54.91,13.672,13.659,30.0]
[1672825139699,54.88,13.678,13.66,26.1]
[1672825139915,54.88,13.678,13.661,30.0]
[1672825140106,70.86634775,13.678,13.661,30.0]
[1672825141469,70.86634775,13.678,13.661,29.0]
[1672825141695,54.88,13.678,13.661,29.0]
[1672825141914,54.88,13.679,13.661,29.0]
[1672825142105,20.0,13.678,13.662,25.58]
[1672825142426,20.0,13.678,13.663,30.0]
[1672825142647,54.87,13.682,13.664,45.58]
[1672825142850,548.46,13.7,13.665,30.0]
[1672825142851,30.0,13.688,13.665,30.0]
[1672825143048,15.98634775,13.686,13.666,24.83]
[1672825143258,15.98634775,13.686,13.667,50.0]
[1672825143259,54.85,13.685,13.667,50.0]
[1672825143468,30.0,13.684,13.668,24.83]
[1672825143680,54.86,13.683,13.668,24.83]
[1672825143883,54.86,13.683,13.669,30.0]
[1672825144520,54.85,13.685,13.669,30.0]
[1672825144735,15.27,13.68,13.67,113.769]
[1672825145261,15.27,13.68,13.671,30.0]
[1672825148417,15.27,13.68,13.671,54.8]
[1672825149037,54.85,13.687,13.671,54.8]
[1672825149781,30.0,13.686,13.671,24.8]
[1672825150106,15.27,13.68,13.671,24.8]
[1672825150305,15.27,13.68,13.671,54.8]
[1672825150519,54.85,13.685,13.671,54.8]
[1672825150723,54.85,13.687,13.672,30.0]
[1672825150932,54.84,13.688,13.672,30.0]
[1672825151158,54.84,13.688,13.673,24.74]
[1672825151464,46.7775,13.689,13.674,30.0]
[1672825151677,20.0,13.688,13.675,24.74]
[1672825152316,20.0,13.689,13.675,24.74]
[1672825152836,30.0,13.688,13.672,23.4024]
[1672825153042,15.12,13.68,13.672,23.4024]
[1672825153250,84.84,13.688,13.671,48.549]
[1672825153464,84.84,13.688,13.671,71.9514]
[1672825153673,84.84,13.688,13.672,30.0]
[1672825154516,54.84,13.688,13.672,30.0]
[1672825154834,54.84,13.688,13.673,24.62]
[1672825155458,30.0,13.687,13.673,24.62]
[1672825156287,30.0,13.687,13.672,24.62]
[1672825156497,54.85,13.686,13.671,47.3314]
[1672825156720,30.0,13.685,13.671,47.3314]
[1672825157036,30.0,13.685,13.67,138.5352]
[1672825157037,30.0,13.679,13.67,138.5352]
[1672825157360,54.88,13.678,13.67,138.5352]
[1672825157553,30.0,13.677,13.67,138.5352]
[1672825157763,30.0,13.675,13.665,23.8352]
[1672825157969,15.27,13.67,13.665,23.8352]
[1672825158283,15.27,13.67,13.659,25.17]
[1672825161679,15.27,13.67,13.658,48.5842]
[1672825163139,15.27,13.67,13.658,23.4842]
[1672825163786,15.27,13.67,13.659,25.1]
[1672825163993,30.0,13.671,13.659,25.1]
[1672825167149,15.27,13.67,13.659,25.1]
[1672825167554,15.27,13.67,13.658,23.4842]
[1672825168079,15.27,13.67,13.658,48.6542]
[1672825170191,100.90634775,13.669,13.658,23.4842]
[1672825170617,50.0,13.668,13.658,23.4842]
[1672825170836,30.0,13.666,13.658,23.4842]
[1672825171028,30.0,13.666,13.657,111.8516]
[1672825173458,30.0,13.664,13.657,111.8516]
[1672825173651,30.0,13.664,13.655,22.9272]
[1672825173855,30.0,13.664,13.651,108.0178]
[1672825176397,30.0,13.664,13.651,133.4978]
[1672825176616,30.0,13.664,13.651,108.0178]
[1672825177848,30.0,13.664,13.651,133.4978]
[1672825178606,54.94,13.664,13.651,133.4978]
[1672825178798,15.98634775,13.665,13.654,21.51243447]
[1672825179008,30.0,13.669,13.655,25.28]
[1672825179234,20.0,13.668,13.654,49.804]
[1672825179553,30.0,13.667,13.654,49.804]
[1672825179763,30.0,13.667,13.654,24.524]
[1672825180163,45.98634775,13.667,13.654,24.524]
[1672825180375,30.0,13.665,13.654,24.524]
[1672825180812,30.0,13.663,13.654,24.524]
[1672825187106,82.43,13.665,13.654,24.524]
[1672825187743,27.5,13.665,13.654,24.524]
[1672825188495,30.0,13.663,13.654,24.524]
[1672825189525,54.95,13.662,13.654,24.524]
[1672825189735,30.0,13.661,13.654,24.524]
[1672825189962,30.0,13.661,13.651,108.0178]
[1672825190281,30.0,13.659,13.648,25.44]
[1672825190473,20.0,13.658,13.643,25.45]
[1672825190682,30.0,13.657,13.643,25.45]
[1672825191323,30.0,13.657,13.635,30.0]
[1672825191324,30.0,13.655,13.635,117.8157]
[1672825191533,54.98,13.654,13.635,117.8157]
[1672825191849,30.0,13.653,13.635,117.8157]
[1672825192063,30.0,13.651,13.635,117.8157]
[1672825192278,30.0,13.649,13.636,30.0]
[1672825192469,30.0,13.649,13.637,25.68]
[1672825192686,30.0,13.651,13.637,55.68]
[1672825192905,30.0,13.651,13.639,30.0]
[1672825193114,30.0,13.653,13.64,25.67]
[1672825193748,30.0,13.653,13.641,30.0]
[1672825193967,30.0,13.653,13.642,25.67]
[1672825194158,30.0,13.655,13.642,25.67]
[1672825194373,30.0,13.655,13.643,111.3185]
[1672825195010,30.0,13.655,13.643,136.9585]
[1672825195222,30.0,13.655,13.643,111.3185]
[1672825195546,84.97,13.655,13.643,111.3185]
[1672825195735,84.97,13.655,13.643,135.1966]
[1672825196262,84.97,13.655,13.636,29.337986]
[1672825196263,100.95634775,13.655,13.636,29.337986]
[1672825196589,30.0,13.653,13.636,29.337986]
[1672825196810,30.0,13.651,13.636,29.337986]
[1672825197117,58.23061093,13.652,13.637,26.0]
[1672825197310,53.3959,13.659,13.638,30.0]
[1672825197527,30.0,13.657,13.639,26.0]
[1672825197958,54.97,13.656,13.639,26.0]
[1672825198160,30.0,13.655,13.638,70.0285]
[1672825198380,54.98,13.654,13.638,70.0285]
[1672825198592,50.0,13.653,13.636,29.337986]
[1672825198793,30.0,13.651,13.636,29.337986]
[1672825199004,54.99,13.65,13.636,29.337986]
[1672825199209,30.0,13.649,13.636,29.337986]
[1672825199426,75.0,13.648,13.636,59.337986]
[1672825199842,20.0,13.648,13.637,30.0]
[1672825200168,75.0,13.648,13.637,30.0]
[1672825200567,75.0,13.648,13.636,59.337986]
[1672825200780,75.0,13.648,13.636,29.337986]
[1672825201420,90.98634775,13.648,13.636,29.337986]
[1672825202463,90.98634775,13.648,13.635,115.7256]
[1672825202891,90.98634775,13.648,13.636,30.0]
[1672825203090,20.0,13.648,13.636,30.0]
[1672825203296,20.0,13.648,13.635,115.7256]
[1672825203518,35.98634775,13.648,13.637,29.338953]
[1672825203742,90.98634775,13.648,13.637,29.338953]
[1672825204999,90.98634775,13.648,13.631,48.5227]
[1672825205000,119.1899807,13.634,13.63,386.682153]
[1672825205195,119.1899807,13.634,13.63,265.77991003]
[1672825205196,4.29613848,13.632,13.63,265.77991003]
[1672825205403,55.06,13.633,13.63,18.84508036]
[1672825205404,202.95657265,13.631,13.63,18.84508036]
[1672825205611,385.19166995,13.631,13.63,18.84508036]
[1672825205933,3.67066419,13.623,13.612,92.0]
[1672825206144,180.38988026,13.63,13.612,92.0]
[1672825206145,30.0,13.619,13.612,92.0]
[1672825206358,59.99490083,13.618,13.613,9.4266571]
[1672825206565,30.0,13.617,13.613,9.4266571]
[1672825206781,55.13,13.616,13.613,9.4266571]
[1672825206992,76.49,13.62,13.614,30.0]
[1672825207196,110.2681868,13.616,13.613,9.4266571]
[1672825207405,76.49,13.62,13.613,9.4266571]
[1672825207612,76.6,13.62,13.613,9.4266571]
[1672825209196,76.6,13.62,13.613,65.9766571]
[1672825209413,15.32,13.62,13.613,35.9766571]
[1672825209828,15.32,13.62,13.614,30.0]
[1672825210036,485.97,13.63,13.616,30.0]
[1672825210037,472.33,13.63,13.616,30.0]
[1672825210262,472.33,13.63,13.617,26.55]
[1672825210457,411.31,13.63,13.618,30.0]
[1672825210671,411.31,13.63,13.619,26.54]
[1672825210884,264.6,13.628,13.619,26.54]
[1672825211105,264.6,13.628,13.617,26.55]
[1672825212261,264.6,13.628,13.618,30.0]
[1672825212470,264.6,13.628,13.619,26.39]
[1672825212791,264.6,13.628,13.617,26.39]